bitfinex/quotes_ETHUSD_20250210
["timestamp","ask_amount","ask_price","bid_price","bid_amount"]
[1739149893056,0.06588981,2635.5,2635.2,8.86]
[1739149893435,3.86022981,2635.5,2635.2,8.86]
[1739149893649,0.06588981,2635.5,2635.2,8.86]
[1739149893862,3.86032981,2635.5,2635.2,8.86]
[1739149894825,3.79459,2635.4,2635.1,3.02335723]
[1739149895067,3.7941,2635.7,2635.1,3.02335723]
[1739149895265,0.8247,2636.2,2635.4,3.02335723]
[1739149895466,3.79413,2635.7,2635.4,3.02335723]
[1739149895633,3.86010981,2635.6,2635.4,3.02335723]
[1739149895838,0.06588981,2635.6,2635.4,3.02335723]
[1739149896039,3.79434,2635.5,2635.4,3.02335723]
[1739149896254,3.79434,2635.5,2634.9,8.86]
[1739149896255,3.79489,2635.2,2634.9,8.86]
[1739149896439,3.79506,2635.0,2634.9,8.86]
[1739149896777,0.8289,2634.5,2633.0,0.7999]
[1739149897060,0.1,2634.8,2633.0,0.7999]
[1739149897061,3.79699,2633.7,2633.0,1.18222572]
[1739149897263,0.06624024,2633.6,2633.5,3.02335723]
[1739149897462,3.796,2634.4,2633.5,3.02335723]
[1739149897664,0.06624024,2634.3,2633.8,3.02335723]
[1739149897851,3.79631,2634.2,2633.8,3.02335723]
[1739149898050,3.79611,2634.3,2633.8,3.02335723]
[1739149898253,3.796,2634.4,2633.8,3.02335723]
[1739149898450,3.796,2634.4,2633.8,3.40568295]
[1739149898762,3.86234024,2634.3,2633.8,3.40568295]
[1739149900044,0.06624024,2634.3,2633.8,3.40568295]
[1739149900243,3.79624,2634.2,2633.8,3.40568295]
[1739149900627,0.06624024,2634.1,2633.8,3.40568295]
[1739149901045,3.79612,2634.3,2633.8,3.40568295]
[1739149901240,0.06624024,2634.2,2633.8,3.40568295]
[1739149901469,3.7959,2634.5,2633.9,0.50500108]
[1739149901670,6.79566,2634.6,2634.1,3.02335723]
[1739149901979,3.0,2634.6,2634.1,3.02335723]
[1739149902159,0.06624024,2634.5,2634.1,3.02335723]
[1739149902368,0.06624024,2634.5,2634.1,11.88335723]
[1739149902674,0.8289,2635.1,2634.4,3.02335723]
[1739149902858,3.79519,2635.0,2634.4,3.02335723]
[1739149903168,8.41898,2635.1,2634.4,3.02335723]
[1739149903371,3.79562,2634.7,2634.4,3.02335723]
[1739149903672,3.79562,2634.7,2634.1,9.24232572]
[1739149903673,3.79577,2634.6,2634.1,12.26568295]
[1739149904176,0.06624024,2634.5,2634.2,0.55]
[1739149904639,3.79562,2634.7,2634.2,0.55]
[1739149904837,0.06624024,2634.4,2634.2,0.55]
[1739149905041,3.79562,2634.7,2634.2,0.55]
[1739149905446,0.06624024,2634.6,2634.2,0.55]
[1739149906386,7.59124,2634.7,2634.2,0.55]
[1739149906588,3.79562,2634.7,2634.2,0.55]
[1739149906792,0.06624024,2634.6,2634.2,0.55]
[1739149908062,3.79554,2634.7,2634.2,0.55]
[1739149908259,0.04744284,2635.0,2634.1,3.02335723]
[1739149908505,0.04744284,2635.0,2634.0,8.86]
[1739149908506,0.7677,2634.5,2634.0,8.86]
[1739149908685,3.79593,2634.4,2634.0,8.86]
[1739149908858,3.79611,2634.3,2634.0,8.86]
[1739149909060,3.86235024,2634.3,2634.0,8.86]
[1739149909501,3.86236024,2634.3,2634.0,8.86]
[1739149909698,3.79636,2634.1,2634.0,8.86]
[1739149909901,3.86112502,2634.1,2634.0,8.86]
[1739149910805,3.79701,2633.7,2633.5,3.02335723]
[1739149911101,3.79701,2633.7,2633.5,11.88335723]
[1739149911300,3.79701,2633.7,2633.2,11.88335723]
[1739149911459,0.06451658,2633.6,2633.2,11.88335723]
[1739149911988,0.06451658,2633.5,2633.2,11.88335723]
[1739149912298,3.79707,2633.7,2633.3,0.55]
[1739149912701,3.79687,2633.8,2633.3,0.55]
[1739149912996,7.59375,2633.8,2633.3,0.55]
[1739149913197,0.06451658,2633.7,2633.3,0.55]
[1739149913556,3.86155658,2633.7,2633.3,0.55]
[1739149914394,3.79719,2633.6,2633.2,11.88335723]
[1739149914607,3.86140691,2633.6,2633.2,11.88335723]
[1739149914789,0.06421691,2633.6,2633.3,0.55]
[1739149915105,0.06421691,2633.6,2633.5,3.02335723]
[1739149915765,3.0,2634.0,2633.5,3.02335723]
[1739149915956,0.06431925,2633.6,2633.5,3.57335723]
[1739149916161,3.79643,2634.1,2633.6,0.55]
[1739149916660,7.62175,2634.3,2633.6,0.55]
[1739149916661,0.06431925,2634.0,2633.8,3.02335723]
[1739149917105,0.06431925,2633.9,2633.8,3.02335723]
[1739149917408,3.79629,2634.2,2633.8,3.57335723]
[1739149917587,3.79594,2634.4,2633.8,3.57335723]
[1739149917588,0.06431925,2633.9,2633.8,3.57335723]
[1739149917792,3.0,2634.2,2633.8,3.57335723]
[1739149917965,3.79607,2634.3,2633.8,12.43335723]
[1739149918168,0.06431925,2634.1,2633.8,12.43335723]
[1739149918384,0.06448004,2634.2,2633.9,9.41]
[1739149918584,3.79588,2634.5,2634.1,3.02335723]
[1739149918585,3.79578,2634.5,2634.1,3.02335723]
[1739149919868,3.79565,2634.6,2634.1,3.02335723]
[1739149920208,3.79583,2634.5,2634.1,3.02335723]
[1739149920363,3.79565,2634.6,2634.1,3.02335723]
[1739149920565,3.79587,2634.5,2634.1,3.02335723]
[1739149920765,3.79587,2634.5,2634.2,0.55]
[1739149920990,3.79595,2634.4,2634.2,0.55]
[1739149921165,3.79587,2634.5,2634.2,0.55]
[1739149921381,3.7956,2634.7,2634.2,0.55]
[1739149921699,3.79484,2635.2,2634.2,0.55]
[1739149921700,0.8256,2635.4,2634.5,0.55]
[1739149922005,3.79522,2634.9,2634.6,0.8324]
[1739149922314,3.79535,2634.8,2634.7,3.02335723]
[1739149922484,3.79521,2634.9,2634.7,3.02335723]
[1739149922882,6.79509,2635.0,2634.7,3.02335723]
[1739149923083,3.79512,2635.0,2634.7,3.02335723]
[1739149923280,0.06457504,2634.9,2634.7,3.02335723]
[1739149923489,0.83005954,2634.9,2634.5,8.86]
[1739149923715,3.79668,2633.9,2633.5,3.85575723]
[1739149923912,3.79668,2633.9,2633.5,4.61013571]
[1739149924210,0.06480879,2633.8,2633.6,0.55]
[1739149924407,0.06480879,2633.8,2633.7,3.57335723]
[1739149924590,3.79664,2634.0,2633.7,3.57335723]
[1739149924905,7.59261,2634.2,2633.7,3.57335723]
[1739149925217,0.06477226,2634.1,2633.8,0.55]
[1739149925415,0.06477226,2634.1,2634.0,4.40575723]
[1739149925600,3.79549,2634.7,2634.1,0.55]
[1739149925800,3.79589,2634.5,2634.1,9.41]
[1739149926116,3.79578,2634.5,2634.1,9.41]
[1739149926317,3.86090379,2634.4,2634.1,9.41]
[1739149926473,3.79621,2634.2,2634.1,8.86]
[1739149926809,3.79607,2634.3,2634.1,9.6794]
[1739149927108,0.0649184,2634.2,2634.1,8.86]
[1739149927307,3.79607,2634.3,2634.1,8.86]
[1739149927490,0.0649184,2634.2,2634.1,8.86]
[1739149927811,6.79621,2634.2,2634.1,8.86]
[1739149928024,3.7551,2633.7,2632.8,4.22235723]
[1739149928173,3.79825,2632.8,2632.5,3.84275723]
[1739149928368,3.79774,2633.2,2632.5,3.84275723]
[1739149928573,3.0,2633.1,2632.5,12.70275723]
[1739149928877,3.79796,2633.0,2632.5,12.70275723]
[1739149929085,0.06423864,2632.9,2632.6,0.55]
[1739149929804,0.06423864,2632.9,2632.6,0.0041882]
[1739149929972,0.06423864,2632.9,2632.6,0.5541882]
[1739149930177,3.79772,2633.2,2632.6,0.5541882]
[1739149930516,3.79768,2633.2,2632.8,3.02335723]
[1739149930697,3.79768,2633.2,2632.8,3.02754543]
[1739149930901,3.79746,2633.4,2632.8,3.02754543]
[1739149930902,7.59495,2633.4,2632.8,3.02754543]
[1739149931107,3.79756,2633.3,2632.8,3.02754543]
[1739149931399,3.79746,2633.4,2632.9,0.55]
[1739149931604,3.79752,2633.3,2632.9,0.55]
[1739149931810,3.79752,2633.3,2632.9,0.5541882]
[1739149932010,3.79775,2633.2,2632.9,0.5541882]
[1739149932206,3.79775,2633.2,2632.9,0.0041882]
[1739149932207,3.79794,2633.0,2632.9,0.0041882]
[1739149933885,3.79781,2633.1,2632.9,0.0041882]
[1739149934604,0.7551,2633.5,2632.9,0.0041882]
[1739149934806,3.79761,2633.3,2632.9,0.8235882]
[1739149935121,3.79781,2633.1,2632.9,0.8235882]
[1739149935616,3.7551,2633.5,2632.9,0.8235882]
[1739149935821,3.79788,2633.1,2632.9,0.8235882]
[1739149936118,3.79794,2633.0,2632.9,0.0041882]
[1739149936323,4.64531663,2633.0,2632.9,0.0041882]
[1739149936481,7.64531663,2633.0,2632.9,0.0041882]
[1739149936682,8.74215966,2633.0,2632.9,0.0041882]
[1739149937515,5.74215966,2633.0,2632.9,0.0041882]
[1739149938398,5.80464384,2633.0,2632.9,0.0041882]
[1739149940099,5.00474384,2633.0,2632.9,0.0041882]
[1739149940283,3.86042418,2633.0,2632.9,0.0041882]
[1739149940717,0.0470719,2633.0,2632.9,0.0041882]
[1739149940916,3.79777,2633.2,2632.9,0.0041882]
[1739149941097,0.061963,2633.1,2632.9,0.0041882]
[1739149941297,3.79753,2633.3,2633.0,0.7881]
[1739149941528,0.061963,2633.2,2633.0,0.7881]
[1739149941710,7.59513,2633.3,2633.0,0.7881]
[1739149941908,3.859653,2633.2,2633.0,0.7922882]
[1739149942484,0.061963,2633.2,2633.0,0.7922882]
[1739149942685,6.79737,2633.4,2633.0,1.17385274]
[1739149942886,3.85973434,2633.3,2633.0,1.17385274]
[1739149943183,3.85973434,2633.3,2633.1,3.02335723]
[1739149943384,0.06220434,2633.3,2633.1,13.88335723]
[1739149943629,0.06220434,2633.3,2633.2,0.7881]
[1739149943830,0.04746248,2634.2,2633.2,1.29386226]
[1739149944140,0.7999,2634.8,2634.1,3.02335723]
[1739149944427,3.79573,2634.6,2634.1,3.02335723]
[1739149944788,3.79593,2634.4,2634.1,3.02335723]
[1739149945333,3.79621,2634.2,2634.1,3.02335723]
[1739149945492,3.79593,2634.4,2634.1,3.02335723]
[1739149945820,0.05649136,2634.3,2634.1,3.02335723]
[1739149946025,3.79637,2634.1,2633.8,3.02335723]
[1739149946227,7.59287,2634.1,2633.8,3.02335723]
[1739149946391,3.79637,2634.1,2633.8,3.02335723]
[1739149946593,0.05649136,2634.0,2633.8,3.02335723]
[1739149946792,3.85307136,2634.0,2633.7,0.7922882]
[1739149947004,3.79666,2633.9,2633.7,0.0041882]
[1739149947191,3.79679,2633.8,2633.7,0.0041882]
[1739149947392,0.05685806,2633.8,2633.7,0.0041882]
[1739149948136,3.85364806,2633.8,2633.7,0.0041882]
[1739149948428,7.65354806,2633.8,2633.7,0.0041882]
[1739149948985,3.05685806,2633.8,2633.7,0.0041882]
[1739149950019,0.05685806,2633.8,2633.7,0.0041882]
[1739149950316,3.0,2633.9,2633.7,0.0041882]
[1739149950519,3.79613,2634.3,2633.8,3.02335723]
[1739149950693,3.79613,2634.3,2633.9,0.30275454]
[1739149950892,3.0,2634.2,2633.9,0.30275454]
[1739149951194,3.0,2634.4,2633.9,0.30275454]
[1739149951390,3.79615,2634.3,2633.9,0.30275454]
[1739149951592,3.0,2634.4,2633.9,0.30275454]
[1739149951932,3.79586,2634.5,2634.1,3.02335723]
[1739149952130,3.79586,2634.5,2633.9,0.30275454]
[1739149952131,3.79625,2634.2,2633.9,0.30275454]
[1739149952315,3.79625,2634.2,2633.8,3.02335723]
[1739149952493,6.79609,2634.3,2633.8,3.02335723]
[1739149952701,3.79508,2635.0,2634.1,3.02335723]
[1739149952900,3.79519,2635.0,2634.4,3.02335723]
[1739149953106,3.0,2634.9,2634.4,3.02335723]
[1739149953429,0.05685806,2634.8,2634.4,3.32569295]
[1739149953600,0.05685806,2634.8,2634.7,3.02335723]
[1739149953949,7.59,2635.1,2634.7,3.02335723]
[1739149954105,0.05685806,2635.0,2634.7,3.02335723]
[1739149954306,7.59059,2634.9,2634.7,3.02335723]
[1739149954506,3.79524,2634.9,2634.7,3.02335723]
[1739149954705,0.05685806,2634.8,2634.7,3.02335723]
[1739149955610,3.79478,2635.2,2634.7,3.40450295]
[1739149955811,0.05685806,2634.8,2634.7,3.40450295]
[1739149956314,3.79492,2635.1,2634.7,3.40450295]
[1739149956652,0.05685806,2635.0,2634.7,3.40450295]
[1739149957011,0.8147,2635.8,2634.7,3.40450295]
[1739149957212,0.05685806,2634.9,2634.8,0.3404503]
[1739149957445,3.0,2635.3,2634.8,0.3404503]
[1739149957630,0.05810428,2634.9,2634.8,0.3404503]
[1739149957834,6.79467,2635.3,2634.8,0.3404503]
[1739149958469,3.85294428,2635.2,2634.8,0.3404503]
[1739149958814,0.05810428,2635.2,2635.0,3.02335723]
[1739149959237,3.79437,2635.5,2635.0,3.35973798]
[1739149959550,3.79464,2635.3,2635.0,3.35973798]
[1739149959850,3.79437,2635.5,2635.0,3.35973798]
[1739149959851,0.05810428,2635.2,2635.0,3.35973798]
[1739149960149,3.79457,2635.4,2635.1,0.7941]
[1739149960355,0.05810428,2635.3,2635.1,0.7941]
[1739149961023,3.7945,2635.4,2635.1,0.7941]
[1739149961218,0.05810428,2635.2,2635.1,0.7941]
[1739149961718,3.79465,2635.3,2635.1,0.7941]
[1739149961919,0.05810428,2635.2,2635.1,0.7941]
[1739149962162,3.79465,2635.3,2635.1,0.7941]
[1739149962455,0.05810428,2635.2,2635.1,0.7941]
[1739149962817,3.79455,2635.4,2635.1,0.7941]
[1739149963021,0.05810428,2635.2,2635.1,0.7941]
[1739149963222,3.79455,2635.4,2635.1,0.7941]
[1739149963762,0.05810428,2635.3,2635.1,0.7941]
[1739149964565,3.79463,2635.4,2635.1,0.7941]
[1739149964766,0.05810428,2635.3,2635.1,0.7941]
[1739149965646,3.0,2635.5,2635.1,0.7941]
[1739149965855,6.79442,2635.5,2635.3,3.02335723]
[1739149966050,3.0,2635.5,2635.3,3.02335723]
[1739149966441,3.0,2635.6,2635.3,3.02335723]
[1739149967084,6.79428,2635.6,2635.3,3.02335723]
[1739149967229,3.79428,2635.6,2635.3,3.02335723]
[1739149967546,3.79428,2635.6,2635.3,3.44664133]
[1739149968269,3.79407,2635.7,2635.3,3.44664133]
[1739149968569,7.58826,2635.7,2635.3,3.44664133]
[1739149968763,0.059643,2635.6,2635.3,3.02335723]
[1739149969650,3.79392,2635.8,2635.3,3.02335723]
[1739149969972,3.79392,2635.8,2635.6,3.02335723]
[1739149970471,3.79382,2635.9,2635.7,0.7798]
[1739149970636,3.79364,2636.0,2635.7,0.7798]
[1739149970832,3.79387,2635.9,2635.7,0.7798]
[1739149971380,3.79469,2635.3,2635.1,9.6296]
[1739149971536,7.58945,2635.3,2635.1,9.6296]
[1739149971736,3.79442,2635.5,2635.1,9.6296]
[1739149971939,3.79414,2635.7,2635.3,3.02335723]
[1739149972581,7.57224,2635.8,2635.3,3.02335723]
[1739149972750,3.0,2635.8,2635.3,3.02335723]
[1739149973487,3.79404,2635.8,2635.6,3.02335723]
[1739149973782,3.79401,2635.8,2635.6,3.02335723]
[1739149973932,3.79405,2635.7,2635.6,3.02335723]
[1739149974140,3.79422,2635.6,2635.3,3.02335723]
[1739149974339,3.79449,2635.4,2635.3,3.02335723]
[1739149974771,3.79435,2635.5,2635.3,3.02335723]
[1739149975037,3.79449,2635.4,2635.3,3.02335723]
[1739149975448,3.79435,2635.5,2635.3,3.02335723]
[1739149975835,3.79418,2635.7,2635.3,3.02335723]
[1739149976041,3.79429,2635.6,2635.3,3.02335723]
[1739149976266,3.79418,2635.7,2635.3,3.02335723]
[1739149976460,3.79435,2635.5,2635.3,3.02335723]
[1739149976987,3.79449,2635.4,2635.3,3.02335723]
[1739149977162,3.79449,2635.4,2635.0,3.02335723]
[1739149977337,3.79477,2635.2,2635.0,3.02335723]
[1739149977668,3.79477,2635.2,2635.1,2.59725895]
[1739149978780,3.79465,2635.3,2635.1,2.59725895]
[1739149978939,7.58939,2635.3,2635.1,2.59725895]
[1739149979140,3.79465,2635.3,2635.1,2.59725895]
[1739149979338,7.58937,2635.3,2635.1,2.59725895]
[1739149979576,3.79465,2635.3,2635.1,2.59725895]
[1739149979778,7.58937,2635.3,2635.1,2.59725895]
[1739149980239,3.79465,2635.3,2635.1,2.59725895]
[1739149980440,3.79477,2635.2,2635.1,2.59725895]
[1739149980870,3.79465,2635.3,2635.1,2.59725895]
[1739149981082,3.7942,2635.6,2635.2,0.7696]
[1739149981261,3.79434,2635.5,2635.4,2.59725895]
[1739149982465,3.79421,2635.6,2635.4,2.59725895]
[1739149982869,3.79434,2635.5,2635.4,2.59725895]
[1739149983347,3.85374862,2635.5,2635.4,2.59725895]
[1739149983547,3.85374862,2635.5,2635.4,2.93394485]
[1739149983548,0.05940862,2635.5,2635.4,2.93394485]
[1739149983744,3.79422,2635.6,2635.4,2.93394485]
[1739149983944,3.85374862,2635.5,2635.4,2.93394485]
[1739149984173,0.45716974,2636.7,2635.5,0.7696]
[1739149984374,0.7783,2637.3,2636.6,2.59725895]
[1739149984694,3.0,2637.0,2636.9,2.59725895]
[1739149984998,3.79204,2637.1,2636.9,2.59725895]
[1739149985280,0.05728688,2637.0,2636.9,2.59725895]
[1739149985786,0.40487078,2637.2,2636.9,3.01702663]
[1739149986168,3.0,2637.1,2636.9,3.01702663]
[1739149986351,3.0,2636.9,2636.6,3.01702663]
[1739149986547,3.79269,2636.7,2636.6,3.01702663]
[1739149986774,0.05913899,2636.7,2636.6,3.01702663]
[1739149986974,3.79257,2636.8,2636.6,3.01702663]
[1739149987177,3.85174167,2636.7,2636.6,3.01702663]
[1739149987381,3.85174167,2636.7,2636.3,3.01702663]
[1739149987382,3.79309,2636.4,2636.3,3.01702663]
[1739149987585,3.05896341,2636.4,2636.0,3.01702663]
[1739149987745,6.79354,2636.1,2636.0,3.01702663]
[1739149988059,6.85248146,2636.1,2636.0,3.01702663]
[1739149988847,3.0,2636.0,2635.7,3.01702663]
[1739149989093,3.79391,2635.8,2635.7,3.01702663]
[1739149989390,3.85230987,2635.8,2635.7,3.01702663]
[1739149990474,0.05839987,2635.8,2635.7,3.01702663]
[1739149990794,3.0,2636.2,2635.7,3.01702663]
[1739149990969,6.79339,2636.2,2636.1,3.01702663]
[1739149991175,3.79363,2636.0,2635.7,3.01702663]
[1739149991395,0.05836326,2635.9,2635.7,3.01702663]
[1739149991695,3.79391,2635.8,2635.4,3.01702663]
[1739149991904,7.58791,2635.8,2635.4,3.01702663]
[1739149992081,0.05835594,2635.7,2635.4,3.01702663]
[1739149992401,7.58791,2635.8,2635.4,3.01702663]
[1739149992568,0.05831201,2635.6,2635.4,3.01702663]
[1739149992758,0.05831201,2635.6,2635.1,3.78679515]
[1739149992964,3.79467,2635.3,2635.1,3.01702663]
[1739149993191,0.05830469,2635.2,2635.1,3.01702663]
[1739149993499,7.57194,2635.7,2635.1,3.01702663]
[1739149993697,0.05830469,2635.2,2635.1,3.01702663]
[1739149994024,0.05809234,2635.2,2635.1,3.01702663]
[1739149994506,0.05809234,2635.2,2635.1,10.37897326]
[1739149994671,7.58706,2636.1,2635.2,3.3331]
[1739149994864,3.7935,2636.1,2635.8,3.01702663]
[1739149995195,0.7778,2636.3,2635.8,3.80012663]
[1739149995196,0.0581436,2636.0,2635.8,3.80012663]
[1739149995401,3.0,2636.2,2635.8,3.80012663]
[1739149995607,0.05833397,2635.9,2635.8,3.80012663]
[1739149996198,0.0583413,2635.9,2635.8,3.80012663]
[1739149996400,3.79348,2636.1,2635.8,3.01702663]
[1739149996591,0.0583413,2635.9,2635.8,3.01702663]
[1739149997380,3.79348,2636.1,2635.8,3.31872929]
[1739149997574,0.05844377,2636.0,2635.8,3.31872929]
[1739149997901,3.0,2636.2,2635.8,3.31872929]
[1739149998098,0.05844377,2635.9,2635.8,3.31872929]
[1739149998304,6.79335,2636.2,2635.5,11.87702663]
[1739149998305,0.7778,2636.1,2635.5,11.87702663]
[1739149998478,3.79392,2635.8,2635.5,11.87702663]
[1739149998798,6.79378,2635.9,2635.5,11.87702663]
[1739149999021,3.7778,2636.1,2635.8,3.01702663]
[1739149999187,3.7937,2636.0,2635.5,11.87702663]
[1739149999390,3.0,2635.9,2635.8,3.01702663]
[1739149999706,3.79365,2636.0,2635.8,3.01702663]
[1739150000279,3.79322,2636.3,2635.8,3.01702663]
[1739150000592,7.58688,2636.2,2635.8,3.01702663]
[1739150000799,3.79343,2636.2,2635.8,3.01702663]
[1739150001123,3.79377,2635.9,2635.8,3.01702663]
[1739150001409,3.79391,2635.8,2635.5,3.01702663]
[1739150002107,3.79419,2635.7,2635.5,3.39703929]
[1739150003001,7.58793,2635.8,2635.5,3.39703929]
[1739150003305,3.79409,2635.7,2635.5,3.39703929]
[1739150003496,3.79391,2635.8,2635.5,3.39703929]
[1739150003697,7.58795,2635.8,2635.5,3.39703929]
[1739150004013,3.7942,2635.6,2635.5,3.39703929]
[1739150004212,3.7942,2635.6,2635.5,3.01702663]
[1739150004704,3.79407,2635.7,2635.5,3.01702663]
[1739150004892,7.58821,2635.7,2635.5,3.01702663]
[1739150005092,3.79407,2635.7,2635.5,3.01702663]
[1739150005309,3.79392,2635.8,2635.5,3.01702663]
[1739150005709,3.79392,2635.8,2635.6,2.59628196]
[1739150006117,3.79405,2635.7,2635.6,2.59628196]
[1739150006289,3.79392,2635.8,2635.6,2.59628196]
[1739150006624,3.0,2635.9,2635.6,3.68431016]
[1739150006930,3.79349,2636.1,2635.6,3.68431016]
[1739150007125,3.0,2636.0,2635.6,3.68431016]
[1739150007523,6.79372,2636.0,2635.6,3.68431016]
[1739150008026,3.0,2636.0,2635.6,3.68431016]
[1739150008345,3.79377,2635.9,2635.6,3.68431016]
[1739150008621,3.0,2636.0,2635.7,0.36843102]
[1739150009334,6.79376,2636.0,2635.7,0.36843102]
[1739150010131,3.79378,2635.9,2635.7,0.36843102]
[1739150011130,6.79367,2636.0,2635.7,0.36843102]
[1739150011514,3.79349,2636.1,2635.9,2.59628196]
[1739150011707,3.79247,2636.9,2636.0,0.2596282]
[1739150011708,3.79312,2636.4,2636.0,0.2596282]
[1739150012013,3.79305,2636.4,2636.3,2.59628196]
[1739150013229,3.79291,2636.5,2636.3,2.59628196]
[1739150013408,3.85125222,2636.4,2636.3,2.59628196]
[1739150014230,3.85125222,2636.4,2636.0,0.2596282]
[1739150014231,3.79391,2635.8,2635.7,2.59628196]
[1739150014608,3.85225131,2635.8,2635.7,2.59628196]
[1739150018022,3.85225131,2635.8,2635.4,2.59628196]
[1739150018023,0.10576402,2635.8,2635.4,2.59628196]
[1739150018219,3.79434,2635.5,2635.4,2.59628196]
[1739150018705,0.05822418,2635.5,2635.4,2.59628196]
[1739150018909,0.05822418,2635.5,2635.4,2.85591016]
[1739150020236,0.05798258,2635.5,2635.4,2.85591016]
[1739150021598,0.05798258,2635.5,2635.4,3.66661016]
[1739150021930,3.79396,2635.8,2635.4,3.66661016]
[1739150022125,0.05798258,2635.5,2635.4,3.66661016]
[1739150022326,3.79386,2635.9,2635.4,3.66661016]
[1739150022530,0.05798258,2635.5,2635.4,0.8107]
[1739150022736,3.79434,2635.5,2635.4,0.8107]
[1739150022900,3.79492,2635.1,2635.0,0.8107]
[1739150023100,3.7948,2635.2,2635.0,0.8107]
[1739150023296,3.79489,2635.2,2634.7,1.55808517]
[1739150023598,3.79513,2635.0,2634.7,1.55808517]
[1739150023798,3.79489,2635.2,2634.7,1.55808517]
[1739150024054,0.05798258,2635.1,2634.7,1.55808517]
[1739150024332,3.85290258,2635.1,2635.0,2.59628196]
[1739150024510,3.79535,2634.8,2634.7,2.59628196]
[1739150025037,3.85333258,2634.8,2634.7,2.59628196]
[1739150025626,0.05798258,2634.8,2634.7,2.59628196]
[1739150025827,0.05798258,2634.8,2634.7,3.66661016]
[1739150026023,3.79508,2635.0,2634.7,3.66661016]
[1739150026205,0.05798258,2634.9,2634.7,3.66661016]
[1739150026710,3.79502,2635.1,2634.7,3.66661016]
[1739150026902,0.05798258,2634.8,2634.7,1.0703282]
[1739150027101,3.7951,2635.0,2634.7,1.0703282]
[1739150027408,3.79535,2634.8,2634.7,2.59628196]
[1739150027615,0.05798258,2634.8,2634.7,2.59628196]
[1739150027813,3.79535,2634.8,2634.7,2.59628196]
[1739150028025,3.85333258,2634.8,2634.7,2.59628196]
[1739150028913,0.05798258,2634.8,2634.4,2.59628196]
[1739150029112,3.79583,2634.5,2634.4,2.59628196]
[1739150029635,3.85381258,2634.5,2634.4,2.59628196]
[1739150030040,3.79621,2634.2,2634.1,3.36146127]
[1739150030339,3.79621,2634.2,2634.1,2.59628196]
[1739150030712,3.85419258,2634.2,2634.1,2.59628196]
[1739150033435,6.7965,2634.0,2633.9,0.12757659]
[1739150033633,7.97070999,2634.0,2633.9,0.12757659]
[1739150033835,7.92325075,2634.0,2633.9,0.12757659]
[1739150034041,6.85342022,2634.0,2633.9,0.12757659]
[1739150037315,4.61179,2633.8,2633.7,4.79e-06]
[1739150037514,7.65926101,2633.8,2633.7,4.79e-06]
[1739150037833,9.24901646,2633.8,2633.7,4.79e-06]
[1739150038408,10.42674822,2633.8,2633.7,4.79e-06]
[1739150038742,9.24901646,2633.8,2633.7,4.79e-06]
[1739150040405,3.79881,2632.4,2632.3,3.42288196]
[1739150040606,3.85354618,2632.4,2632.3,3.42288196]
[1739150040947,3.85354618,2632.4,2632.3,2.59628196]
[1739150041244,7.6141,2632.2,2632.1,1e-05]
[1739150041629,7.66819028,2632.2,2632.1,1e-05]
[1739150041828,6.85319028,2632.2,2632.1,1e-05]
[1739150042247,3.85319028,2632.2,2632.1,1e-05]
[1739150043238,0.05409028,2632.2,2632.1,1e-05]
[1739150043425,3.79859,2632.6,2632.1,0.3422992]
[1739150043629,0.05254961,2632.5,2632.3,3.02827001]
[1739150044032,3.79859,2632.6,2632.3,3.02827001]
[1739150044227,3.79874,2632.5,2632.3,3.02827001]
[1739150044424,0.05260101,2632.4,2632.3,3.02827001]
[1739150044945,3.79867,2632.5,2632.3,3.36532693]
[1739150045167,0.05260101,2632.4,2632.3,3.36532693]
[1739150045532,0.05260101,2632.4,2632.3,4.18262693]
[1739150045919,3.79728,2633.5,2632.7,3.79829]
[1739150046229,3.79746,2633.4,2633.2,3.02827001]
[1739150046428,3.79728,2633.5,2633.2,3.02827001]
[1739150046619,3.79737,2633.4,2633.3,0.8173]
[1739150046813,3.79737,2633.4,2633.2,3.02827001]
[1739150047039,3.79751,2633.3,2633.2,3.02827001]
[1739150047456,3.79772,2633.2,2633.0,0.8173]
[1739150047623,3.79751,2633.3,2633.0,1.201857]
[1739150047967,7.59515,2633.3,2633.0,1.201857]
[1739150048311,3.79775,2633.2,2633.0,1.201857]
[1739150048514,3.7978,2633.1,2633.0,1.201857]
[1739150048749,3.79751,2633.3,2633.0,1.201857]
[1739150048944,3.79749,2633.4,2633.0,1.201857]
[1739150049358,3.79775,2633.2,2633.0,1.201857]
[1739150049517,3.7978,2633.1,2633.0,1.201857]
[1739150050760,3.79762,2633.3,2633.0,1.201857]
[1739150050939,7.59525,2633.3,2633.0,1.201857]
[1739150051255,3.79762,2633.3,2633.1,0.4230127]
[1739150051555,3.79726,2633.5,2632.8,3.02827001]
[1739150051556,3.79809,2632.9,2632.8,3.02827001]
[1739150051773,3.79796,2633.0,2632.8,3.02827001]
[1739150051927,3.79809,2632.9,2632.8,3.02827001]
[1739150052846,3.79775,2633.2,2632.8,3.02827001]
[1739150053049,3.79746,2633.4,2633.1,3.02827001]
[1739150053248,7.59492,2633.4,2633.2,0.8173]
[1739150053557,3.79751,2633.3,2633.2,0.8173]
[1739150054262,3.79751,2633.3,2632.8,3.02827001]
[1739150054479,3.79809,2632.9,2632.8,3.02827001]
[1739150057564,3.79852,2632.6,2632.5,3.02827001]
[1739150058361,3.85235406,2632.6,2632.5,3.02827001]
[1739150060235,3.79895,2632.3,2632.2,3.84557001]
[1739150060431,3.7991,2632.2,2632.1,1e-05]
[1739150060879,3.85280932,2632.2,2632.1,1e-05]
[1739150061985,0.05370932,2632.2,2632.1,1e-05]
[1739150062336,3.79884,2632.4,2632.1,1e-05]
[1739150062532,0.05370932,2632.2,2632.1,1e-05]
[1739150062737,3.79894,2632.4,2632.1,1e-05]
[1739150062936,0.05370932,2632.2,2632.1,1e-05]
[1739150063167,3.79899,2632.3,2632.1,1e-05]
[1739150063371,0.05370932,2632.2,2632.1,1e-05]
[1739150063739,3.79899,2632.3,2632.1,1e-05]
[1739150063939,0.05370932,2632.2,2632.1,1e-05]
[1739150064365,3.79875,2632.5,2632.1,1e-05]
[1739150064651,3.79898,2632.3,2632.1,1e-05]
[1739150064858,0.05327635,2632.2,2632.1,1e-05]
[1739150065059,3.79875,2632.5,2632.1,3.77897696]